[Event "EYCC Open U10 2021"]
[Site "Tornelo"]
[Date "2021.10.15"]
[Round "9.1"]
[White "Negrean, Andrei"]
[Black "Cankurt, Arda"]
[Result "0-1"]
[ECO "B40"]
[WhiteElo "1847"]
[BlackElo "1356"]
[Annotator "NA"]
[PlyCount "134"]
[EventDate "2021.10.15"]
[EventType "swiss"]
[EventCountry "NET"]
[SourceTitle "playchess.com"]
[Source "ChessBase"]
[SourceQuality "1"]
[TimeControl "5400+30"]

1. e4 {[%emt 0:00:30]} c5 {[%emt 0:00:36]} 2. Nf3 {[%emt 0:00:12]} e6 {[%emt 0:00:06]} 3. c4 {[%emt 0:00:19]} Nc6 {[%emt 0:00:05]} 4. Nc3 {[%emt 0:00:54]} g5 {[%emt 0:00:07]} 5. h3 {[%emt 0:10:15]} Bg7 {[%emt 0:00:11]} 6. d3 {[%emt 0:03:24]} h6 {[%emt 0:00:07]} 7. Be3 {[%emt 0:01:46]} Nd4 {[%emt 0:00:11]} 8. Bxd4 {[%emt 0:03:50]} cxd4 {[%emt 0:00:20]} 9. Nb5 {[%emt 0:01:57]} Qb6 {[%emt 0:01:32]} 10. e5 {[%emt 0:08:49]} a6 {[%emt 0:02:27]} 11. Qa4 {[%emt 0:07:22]} Ne7 {[%emt 0:01:40]} 12. Nd6+ {[%emt 0:01:39]} Kf8 {[%emt 0:00:07]} 13. Qa3 {[%emt 0:01:44]} Kg8 {[%emt 0:13:16]} 14. O-O-O {[%emt 0:15:05]} Nc6 {[%emt 0:01:17]} 15. Re1 {[%emt 0:01:04]} f6 {[%emt 0:02:26]} 16. exf6 {[%emt 0:02:19]} Bxf6 {[%emt 0:00:09]} 17. Nd2 {[%emt 0:01:22]} Qc7 {[%emt 0:01:12]} 18. N2e4 {[%emt 0:05:35]} Be7 {[%emt 0:03:23]} 19. Kb1 {[%emt 0:03:59]} b6 {[%emt 0:03:02]} 20. h4 {[%emt 0:01:56]} Bb7 {[%emt 0:08:17]} 21. hxg5 {[%emt 0:01:49]} Ne5 {[%emt 0:00:48]} 22. Nb5 {[%emt 0:15:06]} Qd8 {[%emt 0:01:10]} 23. Nbd6 {[%emt 0:01:25]} Bxe4 {[%emt 0:05:26]} 24. Rxe4 {[%emt 0:00:37]} Qf8 {[%emt 0:03:45]} 25. c5 {[%emt 0:07:50]} bxc5 {[%emt 0:00:29]} 26. Rxe5 {[%emt 0:02:03]} Bxd6 {[%emt 0:00:08]} 27. Re2 {[%emt 0:00:30]} hxg5 {[%emt 0:02:04]} 28. Rxh8+ {[%emt 0:00:07]} Kxh8 {[%emt 0:00:05]} 29. Qa4 {[%emt 0:00:22]} Qf5 {[%emt 0:01:28]} 30. Rc2 {[%emt 0:00:48]} Qh7 {[%emt 0:02:52]} 31. Rc1 {[%emt 0:00:45]} Rb8 {[%emt 0:07:08]} 32. Qxa6 {[%emt 0:00:24]} Bf4 {[%emt 0:00:09]} 33. Rxc5 {[%emt 0:00:36]} Qh1 {[%emt 0:00:50]} 34. Rc8+ {[%emt 0:00:17]} Kg7 {[%emt 0:00:09]} 35. Rxb8 {[%emt 0:00:42]} Qxf1+ {[%emt 0:00:07]} 36. Kc2 {[%emt 0:00:05]} Qc1+ {[%emt 0:00:36]} 37. Kb3 {[%emt 0:00:09]} Bxb8 {[%emt 0:00:06]} 38. Qb5 {[%emt 0:00:30]} Qd1+ {[%emt 0:01:38]} 39. Kc4 {[%emt 0:00:23]} Qc2+ {[%emt 0:00:22]} 40. Kxd4 {[%emt 0:00:05]} Qxf2+ {[%emt 0:00:19]} 41. Kc3 {[%emt 0:00:51]} Qf6+ {[%emt 0:01:24]} 42. d4 {[%emt 0:00:30]} Qd8 {[%emt 0:01:44]} 43. a4 {[%emt 0:00:45]} Qc7+ {[%emt 0:00:29]} 44. Kb3 {[%emt 0:00:21]} Kf6 {[%emt 0:01:39]} 45. a5 {[%emt 0:01:06]} Ba7 {[%emt 0:00:35]} 46. Qb4 {[%emt 0:00:32]} d6 {[%emt 0:02:17]} 47. Ka2 {[%emt 0:00:42]} Qc6 {[%emt 0:01:18]} 48. Ka3 {[%emt 0:00:29]} Ke7 {[%emt 0:00:26]} 49. Qd2 {[%emt 0:00:22]} Qd5 {[%emt 0:00:32]} 50. Qc3 {[%emt 0:00:38]} Kd7 {[%emt 0:00:41]} 51. Qb4 {[%emt 0:00:32]} Bxd4 {[%emt 0:00:28]} 52. Qa4+ {[%emt 0:00:29]} Kc7 {[%emt 0:00:33]} 53. a6 {[%emt 0:00:24]} Ba7 {[%emt 0:01:31]} 54. b4 {[%emt 0:00:36]} Qd3+ {[%emt 0:00:14]} 55. Ka2 {[%emt 0:00:09]} Qe2+ {[%emt 0:00:11]} 56. Ka3 {[%emt 0:00:29]} Qe3+ {[%emt 0:00:08]} 57. Ka2 {[%emt 0:00:15]} Qf2+ {[%emt 0:00:06]} 58. Kb3 {[%emt 0:00:35]} Qg3+ {[%emt 0:00:07]} 59. Ka2 {[%emt 0:00:22]} Qxg2+ {[%emt 0:00:06]} 60. Kb3 {[%emt 0:00:06]} Qd5+ {[%emt 0:00:07]} 61. Ka3 {[%emt 0:00:18]} Qd3+ {[%emt 0:00:24]} 62. Ka2 {[%emt 0:00:06]} Qc4+ {[%emt 0:00:14]} 63. Ka3 {[%emt 0:00:07]} Qc3+ {[%emt 0:00:12]} 64. Ka2 {[%emt 0:00:08]} Bd4 {[%emt 0:00:24]} 65. Qa5+ {[%emt 0:00:20]} Kc8 {[%emt 0:00:31]} 66. Qa3 {[%emt 0:00:51]} Qc2+ {[%emt 0:00:07]} 67. Qb2 {[%emt 0:00:05]} Qxb2# {[%emt 0:00:04]} 0-1

[Event "EYCC Open U10 2021"]
[Site "Tornelo"]
[Date "2021.10.15"]
[Round "9.2"]
[White "Besou, Hussain"]
[Black "Temirbekov, Taimaz"]
[Result "1/2-1/2"]
[ECO "E21"]
[WhiteElo "1995"]
[BlackElo "1573"]
[Annotator "ChessBase"]
[PlyCount "147"]
[EventDate "2021.10.15"]
[EventType "swiss"]
[EventCountry "NET"]
[SourceTitle "playchess.com"]
[Source "ChessBase"]
[SourceQuality "1"]
[TimeControl "5400+30"]

1. d4 {[%emt 0:00:30]} Nf6 {[%emt 0:00:36]} 2. c4 {[%emt 0:00:06]} e6 {[%emt 0:00:06]} 3. Nc3 {[%emt 0:00:05]} Bb4 {[%emt 0:00:07]} 4. Qc2 {[%emt 0:00:11]} b6 {[%emt 0:00:31]} 5. a3 {[%emt 0:00:14]} Bxc3+ {[%emt 0:01:46]} 6. Qxc3 {[%emt 0:01:16]} Ne4 {[%emt 0:01:44]} 7. Qc2 {[%emt 0:05:13]} Bb7 {[%emt 0:00:11]} 8. Nf3 {[%emt 0:01:04]} d6 {[%emt 0:03:39]} 9. g3 {[%emt 0:01:42]} Nd7 {[%emt 0:02:09]} 10. Bg2 {[%emt 0:01:02]} Qc8 {[%emt 0:08:03]} 11. O-O {[%emt 0:09:16]} O-O {[%emt 0:05:20]} 12. Ne1 {[%emt 0:03:30]} f5 {[%emt 0:01:40]} 13. f3 {[%emt 0:00:14]} Nef6 {[%emt 0:00:11]} 14. e4 {[%emt 0:00:33]} fxe4 {[%emt 0:02:08]} 15. fxe4 {[%emt 0:00:06]} e5 {[%emt 0:00:14]} 16. d5 {[%emt 0:00:05]} Qe8 {[%emt 0:01:14]} 17. b4 {[%emt 0:17:00]} a5 {[%emt 0:01:43]} 18. Rb1 {[%emt 0:01:05]} axb4 {[%emt 0:05:14]} 19. axb4 {[%emt 0:00:11]} Bc8 {[%emt 0:12:16]} 20. Nd3 {[%emt 0:07:06]} Qg6 {[%emt 0:03:27]} 21. Nf2 {[%emt 0:01:32]} Ng4 {[%emt 0:01:50]} 22. Nh1 {[%emt 0:18:38]} Rxf1+ {[%emt 0:16:18]} 23. Bxf1 {[%emt 0:00:32]} Ndf6 {[%emt 0:03:48]} 24. Bg2 {[%emt 0:01:35]} Bd7 {[%emt 0:07:49]} 25. h3 {[%emt 0:03:06]} Nh6 {[%emt 0:00:13]} 26. c5 {[%emt 0:03:15]} Nf7 {[%emt 0:02:44]} 27. cxb6 {[%emt 0:07:41]} cxb6 {[%emt 0:00:06]} 28. Qc4 {[%emt 0:01:43]} Ng5 {[%emt 0:00:47]} 29. Bxg5 {[%emt 0:01:54]} Qxg5 {[%emt 0:01:24]} 30. Qe2 {[%emt 0:00:31]} Ra3 {[%emt 0:00:35]} 31. Qf2 {[%emt 0:03:44]} Qe3 {[%emt 0:05:11]} 32. Qxe3 {[%emt 0:01:13]} Rxe3 {[%emt 0:00:03]} 33. Kf2 {[%emt 0:00:08]} Rc3 {[%emt 0:00:03]} 34. Rb2 {[%emt 0:00:15]} h5 {[%emt 0:00:59]} 35. Ke2 {[%emt 0:03:49]} Bb5+ {[%emt 0:00:07]} 36. Kd2 {[%emt 0:00:34]} Rd3+ {[%emt 0:00:33]} 37. Kc2 {[%emt 0:00:06]} Ra3 {[%emt 0:03:08]} 38. Kd2 {[%emt 0:00:35]} Rd3+ {[%emt 0:02:48]} 39. Kc2 {[%emt 0:00:08]} Re3 {[%emt 0:00:10]} 40. Kd2 {[%emt 0:00:09]} Re2+ {[%emt 0:00:07]} 41. Kc1 {[%emt 0:00:10]} Re1+ {[%emt 0:00:04]} 42. Kd2 {[%emt 0:00:05]} Rg1 {[%emt 0:00:03]} 43. Ke3 {[%emt 0:00:18]} Bc4 {[%emt 0:01:38]} 44. Kf3 {[%emt 0:04:00]} Bf1 {[%emt 0:01:30]} 45. Bxf1 {[%emt 0:00:14]} Rxf1+ {[%emt 0:00:07]} 46. Nf2 {[%emt 0:00:07]} Rc1 {[%emt 0:01:18]} 47. Rb3 {[%emt 0:02:55]} b5 {[%emt 0:01:10]} 48. g4 {[%emt 0:00:51]} h4 {[%emt 0:00:54]} 49. g5 {[%emt 0:00:14]} Rg1 {[%emt 0:00:09]} 50. Ke2 {[%emt 0:00:47]} Rxg5 {[%emt 0:01:40]} 51. Rc3 {[%emt 0:00:15]} Rg2 {[%emt 0:00:07]} 52. Rc8+ {[%emt 0:00:08]} Kh7 {[%emt 0:01:56]} 53. Kf1 {[%emt 0:00:07]} Rg3 {[%emt 0:00:21]} 54. Rb8 {[%emt 0:00:27]} Re3 {[%emt 0:02:40]} 55. Rxb5 {[%emt 0:00:28]} Nxe4 {[%emt 0:00:06]} 56. Nxe4 {[%emt 0:00:07]} Rxe4 {[%emt 0:00:04]} 57. Rb6 {[%emt 0:00:03]} Rf4+ {[%emt 0:00:05]} 58. Ke2 {[%emt 0:00:14]} Rf6 {[%emt 0:00:11]} 59. Rc6 {[%emt 0:00:10]} Rf4 {[%emt 0:01:13]} 60. b5 {[%emt 0:00:25]} Rb4 {[%emt 0:00:32]} 61. b6 {[%emt 0:00:08]} Kg6 {[%emt 0:00:15]} 62. Rxd6+ {[%emt 0:00:09]} Kf5 {[%emt 0:00:04]} 63. Rc6 {[%emt 0:00:53]} Rb3 {[%emt 0:01:08]} 64. Kf2 {[%emt 0:02:12]} e4 {[%emt 0:02:29]} 65. d6 {[%emt 0:04:00]} Ke6 {[%emt 0:00:16]} 66. Rc4 {[%emt 0:00:05]} Kxd6 {[%emt 0:00:27]} 67. Rxe4 {[%emt 0:00:05]} Rxb6 {[%emt 0:00:30]} 68. Rxh4 {[%emt 0:00:08]} Ke7 {[%emt 0:00:05]} 69. Rg4 {[%emt 0:00:12]} Kf6 {[%emt 0:00:06]} 70. Kg2 {[%emt 0:00:07]} Kf5 {[%emt 0:00:06]} 71. Rxg7 {[%emt 0:00:08]} Rg6+ {[%emt 0:00:08]} 72. Rxg6 {[%emt 0:00:03]} Kxg6 {[%emt 0:00:03]} 73. Kg3 {[%emt 0:00:02]} Kh5 {[%emt 0:00:04]} 74. h4 {[%emt 0:00:03]} 1/2-1/2

[Event "EYCC Open U10 2021"]
[Site "Tornelo"]
[Date "2021.10.15"]
[Round "9.3"]
[White "Oikonomopoulos, Filippos"]
[Black "Radzimski, Antoni"]
[Result "0-1"]
[ECO "D31"]
[WhiteElo "1650"]
[BlackElo "1584"]
[Annotator "NA"]
[PlyCount "72"]
[EventDate "2021.10.15"]
[EventType "swiss"]
[EventCountry "NET"]
[SourceTitle "playchess.com"]
[Source "ChessBase"]
[SourceQuality "1"]
[TimeControl "5400+30"]

1. d4 {[%emt 0:00:30]} d5 {[%emt 0:00:36]} 2. c4 {[%emt 0:00:15]} e6 {[%emt 0:00:06]} 3. Nc3 {[%emt 0:00:06]} c6 {[%emt 0:00:14]} 4. e4 {[%emt 0:00:13]} dxe4 {[%emt 0:00:06]} 5. Nxe4 {[%emt 0:00:07]} Bb4+ {[%emt 0:00:08]} 6. Bd2 {[%emt 0:00:14]} Qxd4 {[%emt 0:00:06]} 7. Bxb4 {[%emt 0:00:05]} Qxe4+ {[%emt 0:00:11]} 8. Be2 {[%emt 0:00:05]} Na6 {[%emt 0:01:22]} 9. Ba5 {[%emt 0:00:14]} Bd7 {[%emt 0:01:28]} 10. Bc3 {[%emt 0:08:02]} Ne7 {[%emt 0:01:23]} 11. Nf3 {[%emt 0:17:30]} f6 {[%emt 0:04:47]} 12. O-O {[%emt 0:11:15]} Rd8 {[%emt 0:01:19]} 13. Bd3 {[%emt 0:03:50]} Qg4 {[%emt 0:00:47]} 14. Qc2 {[%emt 0:03:16]} Qh5 {[%emt 0:02:28]} 15. b4 {[%emt 0:06:01]} O-O {[%emt 0:01:35]} 16. Rab1 {[%emt 0:02:40]} e5 {[%emt 0:01:59]} 17. b5 {[%emt 0:04:40]} Nc7 {[%emt 0:06:33]} 18. b6 {[%emt 0:05:10]} axb6 {[%emt 0:03:05]} 19. Rxb6 {[%emt 0:00:12]} Bg4 {[%emt 0:01:24]} 20. Be2 {[%emt 0:02:54]} Ne6 {[%emt 0:02:41]} 21. h3 {[%emt 0:08:49]} Bf5 {[%emt 0:00:40]} 22. Qb2 {[%emt 0:00:37]} Nf4 {[%emt 0:00:51]} 23. Re1 {[%emt 0:04:40]} Bxh3 {[%emt 0:01:50]} 24. Nh2 {[%emt 0:04:21]} Qg6 {[%emt 0:01:30]} 25. g3 {[%emt 0:02:10]} Nf5 {[%emt 0:00:31]} 26. Bf1 {[%emt 0:01:55]} Bxf1 {[%emt 0:02:18]} 27. Rxf1 {[%emt 0:00:39]} Rd3 {[%emt 0:01:29]} 28. Kh1 {[%emt 0:02:00]} Nxg3+ {[%emt 0:02:02]} 29. fxg3 {[%emt 0:00:17]} Qe4+ {[%emt 0:00:05]} 30. Nf3 {[%emt 0:01:30]} Rxf3 {[%emt 0:00:06]} 31. Rxf3 {[%emt 0:00:23]} Qxf3+ {[%emt 0:00:04]} 32. Kh2 {[%emt 0:00:07]} Ne2 {[%emt 0:01:00]} 33. Be1 {[%emt 0:00:56]} Qf1 {[%emt 0:00:24]} 34. Qd2 {[%emt 0:00:25]} Qg1+ {[%emt 0:00:11]} 35. Kh3 {[%emt 0:00:12]} Qh1+ {[%emt 0:00:21]} 36. Kg4 {[%emt 0:00:11]} f5+ {[%emt 0:00:05]} 0-1

[Event "EYCC Open U10 2021"]
[Site "Tornelo"]
[Date "2021.10.15"]
[Round "9.4"]
[White "Demchenko, Maksim Dm"]
[Black "Karimli, Yusif"]
[Result "0-1"]
[ECO "C10"]
[WhiteElo "1615"]
[BlackElo "1571"]
[Annotator "NA"]
[PlyCount "84"]
[EventDate "2021.10.15"]
[EventType "swiss"]
[EventCountry "NET"]
[SourceTitle "playchess.com"]
[Source "ChessBase"]
[SourceQuality "1"]
[TimeControl "5400+30"]

1. e4 {[%emt 0:00:30]} e6 {[%emt 0:00:33]} 2. d4 {[%emt 0:00:07]} d5 {[%emt 0:00:02]} 3. Nd2 {[%emt 0:00:02]} dxe4 {[%emt 0:00:03]} 4. Nxe4 {[%emt 0:00:03]} Bd7 {[%emt 0:00:02]} 5. Nf3 {[%emt 0:00:02]} Bc6 {[%emt 0:00:05]} 6. Bd3 {[%emt 0:00:01]} Nd7 {[%emt 0:00:03]} 7. O-O {[%emt 0:00:03]} Ngf6 {[%emt 0:00:04]} 8. Ned2 {[%emt 0:00:01]} Be7 {[%emt 0:00:04]} 9. Re1 {[%emt 0:00:05]} Bxf3 {[%emt 0:00:04]} 10. Nxf3 {[%emt 0:01:11]} O-O {[%emt 0:00:27]} 11. Ne5 {[%emt 0:12:52]} c5 {[%emt 0:01:05]} 12. Nxd7 {[%emt 0:02:33]} Nxd7 {[%emt 0:06:05]} 13. Be4 {[%emt 0:09:20]} Qc7 {[%emt 0:01:08]} 14. d5 {[%emt 0:01:25]} exd5 {[%emt 0:08:27]} 15. Bxd5 {[%emt 0:19:38]} Nf6 {[%emt 0:00:13]} 16. Bf3 {[%emt 0:00:22]} Rad8 {[%emt 0:01:01]} 17. Qe2 {[%emt 0:00:57]} Rfe8 {[%emt 0:16:17]} 18. g3 {[%emt 0:07:36]} Bf8 {[%emt 0:16:04]} 19. Be3 {[%emt 0:00:16]} c4 {[%emt 0:05:29]} 20. Rad1 {[%emt 0:11:47]} b5 {[%emt 0:04:14]} 21. Rxd8 {[%emt 0:03:14]} Qxd8 {[%emt 0:01:16]} 22. Bc6 {[%emt 0:02:07]} Re5 {[%emt 0:00:18]} 23. Rd1 {[%emt 0:04:12]} Qc8 {[%emt 0:03:41]} 24. Qf3 {[%emt 0:01:40]} a6 {[%emt 0:08:24]} 25. Bf4 {[%emt 0:04:53]} Re6 {[%emt 0:01:10]} 26. Bb7 {[%emt 0:01:03]} Qe8 {[%emt 0:03:03]} 27. Kg2 {[%emt 0:00:39]} h6 {[%emt 0:00:45]} 28. c3 {[%emt 0:01:57]} Bc5 {[%emt 0:05:18]} 29. Bc7 {[%emt 0:08:44]} Qe7 {[%emt 0:02:40]} 30. Bd8 {[%emt 0:00:22]} Qe8 {[%emt 0:08:13]} 31. Rd2 {[%emt 0:06:52]} Nd7 {[%emt 0:01:29]} 32. Bc6 {[%emt 0:00:39]} Qxd8 {[%emt 0:00:25]} 33. Rxd7 {[%emt 0:00:06]} Qf8 {[%emt 0:01:23]} 34. Bd5 {[%emt 0:00:24]} Rf6 {[%emt 0:00:35]} 35. Qg4 {[%emt 0:01:38]} Rxf2+ {[%emt 0:00:09]} 36. Kh3 {[%emt 0:00:04]} Qc8 {[%emt 0:00:48]} 37. Be6 {[%emt 0:00:35]} Qc6 {[%emt 0:01:21]} 38. Bd5 {[%emt 0:00:47]} Qc8 {[%emt 0:00:30]} 39. Be6 {[%emt 0:00:34]} Rf6 {[%emt 0:04:06]} 40. Bd5 {[%emt 0:00:33]} h5 {[%emt 0:00:23]} 41. Bxf7+ {[%emt 0:00:28]} Rxf7 {[%emt 0:00:17]} 42. Qe6 {[%emt 0:00:30]} Qxd7 {[%emt 0:00:05]} 0-1

[Event "EYCC Open U10 2021"]
[Site "Tornelo"]
[Date "2021.10.15"]
[Round "9.5"]
[White "Diachek, Andriy"]
[Black "Kengurov, Yaroslav"]
[Result "1-0"]
[ECO "B51"]
[WhiteElo "1689"]
[BlackElo "1484"]
[Annotator "NA"]
[PlyCount "105"]
[EventDate "2021.10.15"]
[EventType "swiss"]
[EventCountry "NET"]
[SourceTitle "playchess.com"]
[Source "ChessBase"]
[SourceQuality "1"]
[TimeControl "5400+30"]

1. e4 {[%emt 0:00:30]} c5 {[%emt 0:00:35]} 2. Nf3 {[%emt 0:00:05]} Nc6 {[%emt 0:00:05]} 3. Bb5 {[%emt 0:00:04]} d6 {[%emt 0:00:07]} 4. O-O {[%emt 0:00:22]} Bd7 {[%emt 0:00:37]} 5. c3 {[%emt 0:00:19]} Nf6 {[%emt 0:00:06]} 6. Re1 {[%emt 0:00:05]} a6 {[%emt 0:00:03]} 7. Ba4 {[%emt 0:00:04]} g6 {[%emt 0:00:45]} 8. d4 {[%emt 0:00:43]} cxd4 {[%emt 0:00:14]} 9. cxd4 {[%emt 0:00:07]} e6 {[%emt 0:00:28]} 10. Bg5 {[%emt 0:02:43]} h6 {[%emt 0:00:36]} 11. Bh4 {[%emt 0:01:00]} Be7 {[%emt 0:00:56]} 12. d5 {[%emt 0:03:02]} Na5 {[%emt 0:01:22]} 13. dxe6 {[%emt 0:02:08]} fxe6 {[%emt 0:00:24]} 14. Bc2 {[%emt 0:04:37]} e5 {[%emt 0:00:52]} 15. Nc3 {[%emt 0:00:58]} g5 {[%emt 0:10:57]} 16. Bg3 {[%emt 0:00:37]} Qb6 {[%emt 0:01:39]} 17. Nd5 {[%emt 0:06:55]} Nxd5 {[%emt 0:00:50]} 18. exd5 {[%emt 0:00:09]} O-O-O {[%emt 0:00:19]} 19. Qd2 {[%emt 0:01:20]} g4 {[%emt 0:09:28]} 20. Qc3+ {[%emt 0:01:22]} Qc7 {[%emt 0:00:28]} 21. Qxc7+ {[%emt 0:16:46]} Kxc7 {[%emt 0:00:08]} 22. Nd2 {[%emt 0:00:08]} b5 {[%emt 0:04:49]} 23. b4 {[%emt 0:02:37]} Nc4 {[%emt 0:04:33]} 24. Nxc4 {[%emt 0:01:23]} bxc4 {[%emt 0:00:04]} 25. Re4 {[%emt 0:01:42]} Kb6 {[%emt 0:01:53]} 26. Rxc4 {[%emt 0:04:53]} Rc8 {[%emt 0:00:39]} 27. Rxc8 {[%emt 0:02:30]} Rxc8 {[%emt 0:00:32]} 28. Bd3 {[%emt 0:00:34]} Rc3 {[%emt 0:01:58]} 29. Be2 {[%emt 0:00:22]} Rc2 {[%emt 0:01:06]} 30. Bd1 {[%emt 0:05:03]} Rd2 {[%emt 0:00:48]} 31. Bb3 {[%emt 0:00:29]} Bf5 {[%emt 0:04:44]} 32. f3 {[%emt 0:07:23]} gxf3 {[%emt 0:01:01]} 33. gxf3 {[%emt 0:00:08]} Rd3 {[%emt 0:16:18]} 34. f4 {[%emt 0:01:18]} exf4 {[%emt 0:02:53]} 35. Bxf4 {[%emt 0:00:39]} Bf6 {[%emt 0:01:17]} 36. Re1 {[%emt 0:07:45]} Bd4+ {[%emt 0:06:24]} 37. Kg2 {[%emt 0:01:03]} Bc3 {[%emt 0:03:12]} 38. Re8 {[%emt 0:09:04]} Bxb4 {[%emt 0:05:36]} 39. Bxh6 {[%emt 0:03:51]} Bc5 {[%emt 0:04:52]} 40. h4 {[%emt 0:04:26]} Bh3+ {[%emt 0:02:27]} 41. Kh2 {[%emt 0:01:03]} Bd7 {[%emt 0:00:21]} 42. Re4 {[%emt 0:03:25]} Bc8 {[%emt 0:03:12]} 43. Bg5 {[%emt 0:01:16]} Bb7 {[%emt 0:01:57]} 44. Bd8+ {[%emt 0:01:24]} Ka7 {[%emt 0:00:13]} 45. h5 {[%emt 0:01:25]} Bxd5 {[%emt 0:00:47]} 46. Bxd5 {[%emt 0:00:20]} Rxd5 {[%emt 0:00:08]} 47. h6 {[%emt 0:01:21]} Rh5+ {[%emt 0:01:32]} 48. Rh4 {[%emt 0:00:09]} Rxh4+ {[%emt 0:00:52]} 49. Bxh4 {[%emt 0:00:06]} Bd4 {[%emt 0:00:09]} 50. Kg3 {[%emt 0:00:51]} Be3 {[%emt 0:00:21]} 51. h7 {[%emt 0:00:09]} Bd4 {[%emt 0:00:07]} 52. Kf4 {[%emt 0:00:12]} Bb2 {[%emt 0:00:30]} 53. Kf5 {[%emt 0:00:07]} 1-0

[Event "EYCC Open U10 2021"]
[Site "Tornelo"]
[Date "2021.10.15"]
[Round "9.6"]
[White "Gulenko, Zakhar"]
[Black "Petukhov, Dmitriy"]
[Result "1/2-1/2"]
[ECO "B22"]
[WhiteElo "1524"]
[BlackElo "1769"]
[Annotator "NA"]
[PlyCount "121"]
[EventDate "2021.10.15"]
[EventType "swiss"]
[EventCountry "NET"]
[SourceTitle "playchess.com"]
[Source "ChessBase"]
[SourceQuality "1"]
[TimeControl "5400+30"]

1. e4 {[%emt 0:00:30]} c5 {[%emt 0:00:33]} 2. c3 {[%emt 0:00:06]} e6 {[%emt 0:00:03]} 3. d4 {[%emt 0:00:03]} cxd4 {[%emt 0:00:09]} 4. cxd4 {[%emt 0:00:04]} d5 {[%emt 0:00:03]} 5. exd5 {[%emt 0:00:24]} Qxd5 {[%emt 0:00:15]} 6. Nf3 {[%emt 0:00:18]} Nc6 {[%emt 0:00:08]} 7. Be2 {[%emt 0:00:06]} Nf6 {[%emt 0:00:36]} 8. O-O {[%emt 0:00:07]} Qd8 {[%emt 0:00:44]} 9. Nc3 {[%emt 0:00:14]} Be7 {[%emt 0:01:15]} 10. Be3 {[%emt 0:00:14]} O-O {[%emt 0:00:35]} 11. a3 {[%emt 0:00:07]} a6 {[%emt 0:00:20]} 12. b4 {[%emt 0:00:05]} b5 {[%emt 0:03:44]} 13. Qb3 {[%emt 0:00:05]} Bb7 {[%emt 0:00:55]} 14. Rac1 {[%emt 0:00:14]} Rc8 {[%emt 0:00:31]} 15. Rfd1 {[%emt 0:00:04]} Nb8 {[%emt 0:01:20]} 16. Ne5 {[%emt 0:01:21]} Nd5 {[%emt 0:00:29]} 17. Bf3 {[%emt 0:01:23]} Rxc3 {[%emt 0:04:38]} 18. Rxc3 {[%emt 0:00:31]} Nxc3 {[%emt 0:00:04]} 19. Qxc3 {[%emt 0:00:18]} Bxf3 {[%emt 0:00:04]} 20. Nxf3 {[%emt 0:00:31]} Nd7 {[%emt 0:00:52]} 21. h3 {[%emt 0:06:54]} Nb6 {[%emt 0:02:49]} 22. Qc6 {[%emt 0:00:41]} Qd6 {[%emt 0:07:37]} 23. Rc1 {[%emt 0:01:03]} Nc4 {[%emt 0:04:18]} 24. Qxd6 {[%emt 0:00:54]} Bxd6 {[%emt 0:00:04]} 25. Rc3 {[%emt 0:00:17]} Rc8 {[%emt 0:19:43]} 26. Nd2 {[%emt 0:01:05]} Nb6 {[%emt 0:00:35]} 27. Rxc8+ {[%emt 0:01:50]} Nxc8 {[%emt 0:00:04]} 28. Ne4 {[%emt 0:02:16]} Kf8 {[%emt 0:01:15]} 29. Kf1 {[%emt 0:01:23]} Ke7 {[%emt 0:00:06]} 30. Nc5 {[%emt 0:01:15]} Bxc5 {[%emt 0:00:14]} 31. dxc5 {[%emt 0:00:07]} Kd7 {[%emt 0:00:12]} 32. Ke2 {[%emt 0:00:19]} Ne7 {[%emt 0:00:07]} 33. Kd3 {[%emt 0:00:18]} Kc6 {[%emt 0:00:15]} 34. Kd4 {[%emt 0:00:09]} Nd5 {[%emt 0:00:34]} 35. g4 {[%emt 0:01:20]} Ne7 {[%emt 0:01:00]} 36. f4 {[%emt 0:01:21]} f6 {[%emt 0:00:16]} 37. Bd2 {[%emt 0:01:25]} h6 {[%emt 0:06:13]} 38. Ke4 {[%emt 0:01:19]} g5 {[%emt 0:05:22]} 39. fxg5 {[%emt 0:05:50]} hxg5 {[%emt 0:00:49]} 40. Be1 {[%emt 0:00:19]} Nd5 {[%emt 0:00:07]} 41. h4 {[%emt 0:00:29]} gxh4 {[%emt 0:00:11]} 42. Bxh4 {[%emt 0:00:08]} a5 {[%emt 0:07:42]} 43. Be1 {[%emt 0:01:01]} axb4 {[%emt 0:00:10]} 44. axb4 {[%emt 0:00:06]} Ne7 {[%emt 0:01:35]} 45. Bd2 {[%emt 0:00:53]} Kd7 {[%emt 0:03:13]} 46. Kf3 {[%emt 0:02:49]} e5 {[%emt 0:00:56]} 47. Ke4 {[%emt 0:00:38]} Ke6 {[%emt 0:00:25]} 48. Bh6 {[%emt 0:01:30]} Nc6 {[%emt 0:01:08]} 49. Bd2 {[%emt 0:00:17]} Nd4 {[%emt 0:01:12]} 50. Bc3 {[%emt 0:00:32]} Nc6 {[%emt 0:02:56]} 51. Bd2 {[%emt 0:00:19]} Nd8 {[%emt 0:00:26]} 52. Bh6 {[%emt 0:00:56]} Nf7 {[%emt 0:00:50]} 53. Be3 {[%emt 0:00:18]} Nd8 {[%emt 0:01:54]} 54. Bd2 {[%emt 0:00:13]} Nc6 {[%emt 0:00:05]} 55. Bc3 {[%emt 0:00:07]} Ne7 {[%emt 0:00:04]} 56. Be1 {[%emt 0:00:55]} Nc8 {[%emt 0:00:47]} 57. Bd2 {[%emt 0:00:35]} Na7 {[%emt 0:00:36]} 58. Be1 {[%emt 0:00:07]} Nc6 {[%emt 0:00:59]} 59. Bc3 {[%emt 0:00:11]} Ne7 {[%emt 0:00:05]} 60. Be1 {[%emt 0:00:19]} Nc6 {[%emt 0:03:16]} 61. Bc3 {[%emt 0:00:06]} 1/2-1/2